[Event "Titled Tuesday Blitz August 09 Early 2022"]
[White "Dilanyan, Grigor"]
[Black "Jeet, Jain"]
[WhiteFideId "13303570"]
[BlackFideId "5073022"]
[WhiteElo "2264"]
[BlackElo "2055"]
[Result "0-1"]
[Round "06"]
[TimeControl "180+1"]
[Date "2022.08.09"]
[WhiteClock "0:00:08"]
[BlackClock "0:00:16"]

1. Nf3 {[%clk 0:01:59]}  Nf6 {[%clk 0:02:54]} 2. g3 {[%clk 0:01:59]}  g6 {[%clk 0:02:54]} 3. Bg2 {[%clk 0:02:00]}  Bg7 {[%clk 0:02:55]} 4. O-O {[%clk 0:02:00]}  O-O {[%clk 0:02:55]} 5. d4 {[%clk 0:02:01]}  d5 {[%clk 0:02:53]} 6. c4 {[%clk 0:02:02]}  b6 {[%clk 0:02:53]} 7. Nc3 {[%clk 0:01:59]}  e6 {[%clk 0:02:52]} 8. Ne5 {[%clk 0:01:59]}  Bb7 {[%clk 0:02:52]} 9. Qa4 {[%clk 0:01:58]}  c6 {[%clk 0:02:49]} 10. Rd1 {[%clk 0:01:48]}  Nfd7 {[%clk 0:02:49]} 11. Nf3 {[%clk 0:01:44]}  a6 {[%clk 0:02:45]} 12. e4 {[%clk 0:01:41]}  b5 {[%clk 0:02:42]} 13. cxb5 {[%clk 0:01:38]}  cxb5 {[%clk 0:02:41]} 14. Qc2 {[%clk 0:01:38]}  b4 {[%clk 0:02:36]} 15. Na4 {[%clk 0:01:38]}  dxe4 {[%clk 0:02:35]} 16. Ng5 {[%clk 0:01:37]}  Nf6 {[%clk 0:02:21]} 17. Nc5 {[%clk 0:01:30]}  Bd5 {[%clk 0:02:18]} 18. Ngxe4 {[%clk 0:01:28]}  Nxe4 {[%clk 0:02:17]} 19. Nxe4 {[%clk 0:01:28]}  Nc6 {[%clk 0:02:16]} 20. Be3 {[%clk 0:01:26]}  Qa5 {[%clk 0:02:09]} 21. Qc5 {[%clk 0:01:25]}  Qxc5 {[%clk 0:02:08]} 22. Nxc5 {[%clk 0:01:26]}  Bxg2 {[%clk 0:02:07]} 23. Kxg2 {[%clk 0:01:26]}  Ne7 {[%clk 0:02:07]} 24. a3 {[%clk 0:01:15]}  a5 {[%clk 0:02:01]} 25. axb4 {[%clk 0:01:00]}  axb4 {[%clk 0:02:02]} 26. Nd3 {[%clk 0:00:56]}  Nd5 {[%clk 0:01:59]} 27. Nf4 {[%clk 0:00:56]}  Nxf4+ {[%clk 0:01:56]} 28. gxf4 {[%clk 0:00:55]}  h5 {[%clk 0:01:43]} 29. Kf3 {[%clk 0:00:55]}  Rfc8 {[%clk 0:01:32]} 30. Ke4 {[%clk 0:00:52]}  f5+ {[%clk 0:01:14]} 31. Kd3 {[%clk 0:00:51]}  Bf8 {[%clk 0:01:09]} 32. Rxa8 {[%clk 0:00:48]}  Rxa8 {[%clk 0:01:09]} 33. Kc4 {[%clk 0:00:48]}  Kf7 {[%clk 0:01:04]} 34. d5 {[%clk 0:00:48]}  Bd6 {[%clk 0:00:55]} 35. Kb5 {[%clk 0:00:39]}  Ra2 {[%clk 0:00:49]} 36. Kc6 {[%clk 0:00:38]}  Ra6+ {[%clk 0:00:45]} 37. Kb5 {[%clk 0:00:31]}  Ra2 {[%clk 0:00:44]} 38. Kc6 {[%clk 0:00:31]}  Ra6+ {[%clk 0:00:29]} 39. Kb7 {[%clk 0:00:20]}  Ra2 {[%clk 0:00:28]} 40. Rd2 {[%clk 0:00:14]}  exd5 {[%clk 0:00:27]} 41. Rxd5 {[%clk 0:00:15]}  Ke6 {[%clk 0:00:27]} 42. Kc6 {[%clk 0:00:15]}  Ra6+ {[%clk 0:00:25]} 43. Kb5 {[%clk 0:00:15]}  Kxd5 {[%clk 0:00:19]} 44. Kxa6 {[%clk 0:00:16]}  Kc4 {[%clk 0:00:20]} 45. Kb6 {[%clk 0:00:16]}  b3 {[%clk 0:00:17]} 46. Kc6 {[%clk 0:00:15]}  Bb4 {[%clk 0:00:18]} 47. Kd7 {[%clk 0:00:15]}  Kd3 {[%clk 0:00:15]} 48. Ke6 {[%clk 0:00:14]}  Bc3 {[%clk 0:00:15]} 49. Kf7 {[%clk 0:00:12]}  Bxb2 {[%clk 0:00:15]} 50. Kxg6 {[%clk 0:00:12]}  Ba3 {[%clk 0:00:14]} 51. Kxf5 {[%clk 0:00:09]}  b2 {[%clk 0:00:14]} 52. Kg6 {[%clk 0:00:10]}  b1=Q {[%clk 0:00:15]} 53. f5 {[%clk 0:00:10]}  Ke4 {[%clk 0:00:14]} 54. f6 {[%clk 0:00:11]}  Ke5+ {[%clk 0:00:15]} 55. Kg7 {[%clk 0:00:11]}  Qf5 {[%clk 0:00:15]} 56. f4+ {[%clk 0:00:10]}  Ke6 {[%clk 0:00:15]} 57. Bd4 {[%clk 0:00:10]}  Be7 {[%clk 0:00:14]} 58. fxe7 {[%clk 0:00:10]}  Qf7+ {[%clk 0:00:14]} 59. Kh6 {[%clk 0:00:10]}  Qxe7 {[%clk 0:00:15]} 60. Be5 {[%clk 0:00:11]}  Qf7 {[%clk 0:00:15]} 61. Kg5 {[%clk 0:00:11]}  Qf5+ {[%clk 0:00:15]} 62. Kh6 {[%clk 0:00:11]}  Kf7 {[%clk 0:00:16]} 63. h4 {[%clk 0:00:08]}  Qg6# {[%clk 0:00:16]} 0-1


[Site "https://www.chess.com"]

[Event "Titled Tuesday Blitz August 09 Early 2022"]
[White "Dubov, Daniil"]
[Black "Donchenko, Alexander"]
[WhiteFideId "24126055"]
[BlackFideId "24603295"]
[WhiteElo "2996"]
[BlackElo "2823"]
[Result "1-0"]
[Round "06"]
[TimeControl "180+1"]
[Date "2022.08.09"]
[WhiteClock "0:00:38"]
[BlackClock "0:00:56"]

1. e4 {[%clk 0:03:00]}  g6 {[%clk 0:02:59]} 2. d4 {[%clk 0:03:00]}  Bg7 {[%clk 0:02:59]} 3. Nf3 {[%clk 0:03:00]}  d6 {[%clk 0:03:00]} 4. Nc3 {[%clk 0:03:00]}  Nf6 {[%clk 0:03:00]} 5. Bc4 {[%clk 0:03:00]}  O-O {[%clk 0:03:00]} 6. O-O {[%clk 0:03:01]}  c6 {[%clk 0:03:01]} 7. a4 {[%clk 0:02:58]}  Nxe4 {[%clk 0:02:59]} 8. Nxe4 {[%clk 0:02:58]}  d5 {[%clk 0:02:59]} 9. Bd3 {[%clk 0:02:59]}  dxe4 {[%clk 0:03:00]} 10. Bxe4 {[%clk 0:02:59]}  Nd7 {[%clk 0:03:00]} 11. c3 {[%clk 0:02:58]}  Nf6 {[%clk 0:03:00]} 12. Bc2 {[%clk 0:02:58]}  Be6 {[%clk 0:03:00]} 13. Re1 {[%clk 0:02:56]}  Bd5 {[%clk 0:03:00]} 14. a5 {[%clk 0:02:51]}  a6 {[%clk 0:02:58]} 15. Bf4 {[%clk 0:02:49]}  Rc8 {[%clk 0:02:54]} 16. b4 {[%clk 0:02:43]}  Bxf3 {[%clk 0:02:45]} 17. Qxf3 {[%clk 0:02:43]}  Nd5 {[%clk 0:02:46]} 18. Bd2 {[%clk 0:02:41]}  Re8 {[%clk 0:02:45]} 19. Rad1 {[%clk 0:02:39]}  Qc7 {[%clk 0:02:43]} 20. Bb3 {[%clk 0:02:37]}  e6 {[%clk 0:02:43]} 21. g3 {[%clk 0:02:36]}  Rcd8 {[%clk 0:02:42]} 22. Kg2 {[%clk 0:02:33]}  Qd7 {[%clk 0:02:37]} 23. Bg5 {[%clk 0:02:30]}  Rc8 {[%clk 0:02:36]} 24. Re2 {[%clk 0:02:27]}  Qd6 {[%clk 0:02:32]} 25. Rde1 {[%clk 0:02:25]}  Qf8 {[%clk 0:02:32]} 26. Re4 {[%clk 0:02:05]}  Bh6 {[%clk 0:02:31]} 27. h4 {[%clk 0:02:04]}  Bxg5 {[%clk 0:01:59]} 28. hxg5 {[%clk 0:02:04]}  Qe7 {[%clk 0:02:00]} 29. Re5 {[%clk 0:02:02]}  Kg7 {[%clk 0:01:57]} 30. Bxd5 {[%clk 0:01:54]}  cxd5 {[%clk 0:01:57]} 31. Rxd5 {[%clk 0:01:55]}  Red8 {[%clk 0:01:35]} 32. Rxd8 {[%clk 0:01:43]}  Qxd8 {[%clk 0:01:34]} 33. Re5 {[%clk 0:01:43]}  Rc7 {[%clk 0:01:32]} 34. Qe3 {[%clk 0:01:33]}  Rd7 {[%clk 0:01:31]} 35. Rc5 {[%clk 0:01:31]}  b6 {[%clk 0:01:27]} 36. Qe5+ {[%clk 0:01:24]}  Kg8 {[%clk 0:01:27]} 37. axb6 {[%clk 0:01:23]}  Qxb6 {[%clk 0:01:27]} 38. Rc8+ {[%clk 0:01:21]}  Rd8 {[%clk 0:01:27]} 39. Qc7 {[%clk 0:01:08]}  Qxc7 {[%clk 0:01:26]} 40. Rxc7 {[%clk 0:01:08]}  Ra8 {[%clk 0:01:18]} 41. Rc5 {[%clk 0:01:08]}  Kf8 {[%clk 0:01:18]} 42. Kf3 {[%clk 0:01:07]}  Ra7 {[%clk 0:01:18]} 43. Ke4 {[%clk 0:01:06]}  Ke7 {[%clk 0:01:18]} 44. Ke5 {[%clk 0:01:05]}  Rd7 {[%clk 0:01:17]} 45. f4 {[%clk 0:00:59]}  Rb7 {[%clk 0:01:16]} 46. Ke4 {[%clk 0:00:58]}  Kd6 {[%clk 0:01:14]} 47. Kd3 {[%clk 0:00:56]}  Rb8 {[%clk 0:01:06]} 48. Kc4 {[%clk 0:00:54]}  Kd7 {[%clk 0:01:01]} 49. Kb3 {[%clk 0:00:51]}  h6 {[%clk 0:00:55]} 50. gxh6 {[%clk 0:00:39]}  Rh8 {[%clk 0:00:56]} 51. Ra5 {[%clk 0:00:39]}  Rxh6 {[%clk 0:00:57]} 52. Rxa6 {[%clk 0:00:39]}  Rh3 {[%clk 0:00:57]} 53. Ra7+ {[%clk 0:00:40]}  Ke8 {[%clk 0:00:57]} 54. b5 {[%clk 0:00:40]}  Rxg3 {[%clk 0:00:57]} 55. b6 {[%clk 0:00:39]}  Rg1 {[%clk 0:00:57]} 56. Kc4 {[%clk 0:00:38]}  Rb1 {[%clk 0:00:56]} 57. Kc5 {[%clk 0:00:38]} 1-0


[Site "https://www.chess.com"]

[Event "Titled Tuesday Blitz August 09 Early 2022"]
[White "Ekdyshman, Mikhail"]
[Black "Rosenberg, Evan S"]
[WhiteFideId "4149416"]
[BlackFideId "2019299"]
[WhiteElo "2146"]
[BlackElo "2428"]
[Result "1/2-1/2"]
[Round "06"]
[TimeControl "180+1"]
[Date "2022.08.09"]
[WhiteClock "0:00:03"]
[BlackClock "0:00:13"]

1. d4 {[%clk 0:02:59]}  Nf6 {[%clk 0:02:59]} 2. Nf3 {[%clk 0:02:59]}  e6 {[%clk 0:02:59]} 3. e3 {[%clk 0:02:58]}  b6 {[%clk 0:02:57]} 4. c4 {[%clk 0:02:58]}  Bb4+ {[%clk 0:02:55]} 5. Nbd2 {[%clk 0:02:53]}  Bb7 {[%clk 0:02:52]} 6. Bd3 {[%clk 0:02:53]}  Ne4 {[%clk 0:02:45]} 7. Qc2 {[%clk 0:02:52]}  f5 {[%clk 0:02:44]} 8. a3 {[%clk 0:02:45]}  Bxd2+ {[%clk 0:02:43]} 9. Nxd2 {[%clk 0:02:43]}  Qh4 {[%clk 0:02:40]} 10. g3 {[%clk 0:02:19]}  Qh3 {[%clk 0:02:12]} 11. Bf1 {[%clk 0:01:59]}  Qh6 {[%clk 0:01:44]} 12. Bg2 {[%clk 0:01:59]}  Nd6 {[%clk 0:01:28]} 13. O-O {[%clk 0:01:49]}  Bxg2 {[%clk 0:01:28]} 14. Kxg2 {[%clk 0:01:50]}  O-O {[%clk 0:01:27]} 15. e4 {[%clk 0:01:23]}  Qg6 {[%clk 0:01:15]} 16. e5 {[%clk 0:01:19]}  Ne4 {[%clk 0:01:15]} 17. Nxe4 {[%clk 0:01:05]}  fxe4 {[%clk 0:01:15]} 18. Re1 {[%clk 0:01:06]}  e3 {[%clk 0:01:05]} 19. Qxg6 {[%clk 0:01:01]}  Rxf2+ {[%clk 0:01:05]} 20. Kg1 {[%clk 0:01:01]}  hxg6 {[%clk 0:01:05]} 21. Rxe3 {[%clk 0:01:00]}  Rc2 {[%clk 0:01:06]} 22. Rc3 {[%clk 0:00:53]}  Rxc3 {[%clk 0:01:04]} 23. bxc3 {[%clk 0:00:53]}  Nc6 {[%clk 0:01:03]} 24. Bf4 {[%clk 0:00:51]}  Rf8 {[%clk 0:01:02]} 25. Rd1 {[%clk 0:00:41]}  Rf5 {[%clk 0:01:00]} 26. h4 {[%clk 0:00:38]}  Na5 {[%clk 0:00:58]} 27. c5 {[%clk 0:00:33]}  Kf7 {[%clk 0:00:50]} 28. cxb6 {[%clk 0:00:31]}  axb6 {[%clk 0:00:50]} 29. Rb1 {[%clk 0:00:25]}  Ke8 {[%clk 0:00:46]} 30. Rb4 {[%clk 0:00:24]}  Nc6 {[%clk 0:00:42]} 31. Ra4 {[%clk 0:00:19]}  Ne7 {[%clk 0:00:40]} 32. Ra8+ {[%clk 0:00:18]}  Kf7 {[%clk 0:00:40]} 33. Rd8 {[%clk 0:00:18]}  Nd5 {[%clk 0:00:39]} 34. Rxd7+ {[%clk 0:00:18]}  Ke8 {[%clk 0:00:39]} 35. Rxg7 {[%clk 0:00:17]}  Nxc3 {[%clk 0:00:33]} 36. Rxg6 {[%clk 0:00:16]}  Kf7 {[%clk 0:00:29]} 37. Rh6 {[%clk 0:00:15]}  Ne2+ {[%clk 0:00:28]} 38. Kf2 {[%clk 0:00:14]}  Nxf4 {[%clk 0:00:28]} 39. gxf4 {[%clk 0:00:13]}  Rxf4+ {[%clk 0:00:28]} 40. Ke3 {[%clk 0:00:13]}  Rf1 {[%clk 0:00:28]} 41. Rh7+ {[%clk 0:00:13]}  Kg6 {[%clk 0:00:27]} 42. Rxc7 {[%clk 0:00:13]}  Ra1 {[%clk 0:00:26]} 43. Rc6 {[%clk 0:00:09]}  Kf5 {[%clk 0:00:26]} 44. Rxb6 {[%clk 0:00:07]}  Rxa3+ {[%clk 0:00:26]} 45. Kd2 {[%clk 0:00:07]}  Rh3 {[%clk 0:00:25]} 46. Rb1 {[%clk 0:00:05]}  Ke4 {[%clk 0:00:23]} 47. Rb6 {[%clk 0:00:04]}  Kf5 {[%clk 0:00:20]} 48. Rd6 {[%clk 0:00:03]}  Rxh4 {[%clk 0:00:19]} 49. Kc3 {[%clk 0:00:03]}  Rh3+ {[%clk 0:00:19]} 50. Kc4 {[%clk 0:00:04]}  Ra3 {[%clk 0:00:19]} 51. Kc5 {[%clk 0:00:04]}  Ra5+ {[%clk 0:00:19]} 52. Kc6 {[%clk 0:00:05]}  Ra6+ {[%clk 0:00:18]} 53. Kd7 {[%clk 0:00:05]}  Ra7+ {[%clk 0:00:19]} 54. Ke8 {[%clk 0:00:05]}  Ra8+ {[%clk 0:00:19]} 55. Ke7 {[%clk 0:00:06]}  Ra7+ {[%clk 0:00:19]} 56. Rd7 {[%clk 0:00:07]}  Ra4 {[%clk 0:00:19]} 57. Kf7 {[%clk 0:00:07]}  Rb4 {[%clk 0:00:17]} 58. Ke7 {[%clk 0:00:07]}  Ra4 {[%clk 0:00:17]} 59. Rd6 {[%clk 0:00:06]}  Ra7+ {[%clk 0:00:17]} 60. Kd8 {[%clk 0:00:06]}  Rh7 {[%clk 0:00:17]} 61. Rd7 {[%clk 0:00:05]}  Rh6 {[%clk 0:00:16]} 62. Kc7 {[%clk 0:00:05]}  Rh4 {[%clk 0:00:15]} 63. Rd6 {[%clk 0:00:05]}  Rh7+ {[%clk 0:00:15]} 64. Kc6 {[%clk 0:00:05]}  Ra7 {[%clk 0:00:15]} 65. Rd7 {[%clk 0:00:05]}  Ra6+ {[%clk 0:00:15]} 66. Kc5 {[%clk 0:00:05]}  Ra4 {[%clk 0:00:14]} 67. Rf7+ {[%clk 0:00:03]}  Ke4 {[%clk 0:00:13]} 68. Rf6 {[%clk 0:00:04]}  Rxd4 {[%clk 0:00:12]} 69. Rxe6 {[%clk 0:00:03]}  Rd5+ {[%clk 0:00:12]} 70. Kc6 {[%clk 0:00:03]}  Rxe5 {[%clk 0:00:13]} 71. Rxe5+ {[%clk 0:00:03]}  Kxe5 {[%clk 0:00:13]} 1/2-1/2


[Site "https://www.chess.com"]

[Event "Titled Tuesday Blitz August 09 Early 2022"]
[White "Ernst, Sipke"]
[Black "Kamsky, Gata"]
[WhiteFideId "1004689"]
[BlackFideId "2000024"]
[WhiteElo "2736"]
[BlackElo "2882"]
[Result "0-1"]
[Round "06"]
[TimeControl "180+1"]
[Date "2022.08.09"]
[WhiteClock "0:00:26"]
[BlackClock "0:01:57"]

1. d4 {[%clk 0:03:00]}  f5 {[%clk 0:02:57]} 2. Bf4 {[%clk 0:03:00]}  Nf6 {[%clk 0:02:56]} 3. e3 {[%clk 0:02:59]}  d6 {[%clk 0:02:55]} 4. h3 {[%clk 0:02:58]}  g6 {[%clk 0:02:52]} 5. Nf3 {[%clk 0:02:58]}  Bg7 {[%clk 0:02:53]} 6. c4 {[%clk 0:02:56]}  c5 {[%clk 0:02:52]} 7. Nc3 {[%clk 0:02:53]}  O-O {[%clk 0:02:47]} 8. Be2 {[%clk 0:02:53]}  Ne4 {[%clk 0:02:45]} 9. Rc1 {[%clk 0:02:43]}  Nc6 {[%clk 0:02:40]} 10. Bh2 {[%clk 0:02:34]}  Nxc3 {[%clk 0:02:35]} 11. Rxc3 {[%clk 0:02:19]}  cxd4 {[%clk 0:02:18]} 12. exd4 {[%clk 0:02:17]}  Qb6 {[%clk 0:02:18]} 13. c5 {[%clk 0:01:01]}  dxc5 {[%clk 0:02:12]} 14. Rxc5 {[%clk 0:00:58]}  Nxd4 {[%clk 0:02:05]} 15. Bc4+ {[%clk 0:00:26]}  Kh8 {[%clk 0:01:57]} 0-1


[Site "https://www.chess.com"]

[Event "Titled Tuesday Blitz August 09 Early 2022"]
[White "Fajdetic, Hrvoje"]
[Black "Melikhov, Evgeny V."]
[WhiteFideId "14501945"]
[BlackFideId "4122046"]
[WhiteElo "2172"]
[BlackElo "1963"]
[Result "1-0"]
[Round "06"]
[TimeControl "180+1"]
[Date "2022.08.09"]
[WhiteClock "0:00:04"]
[BlackClock "0:00:03"]

1. b3 {[%clk 0:02:45]}  e5 {[%clk 0:02:59]} 2. Bb2 {[%clk 0:02:44]}  Nc6 {[%clk 0:02:59]} 3. e3 {[%clk 0:02:42]}  a6 {[%clk 0:02:59]} 4. Ne2 {[%clk 0:02:42]}  d5 {[%clk 0:02:57]} 5. d4 {[%clk 0:02:42]}  e4 {[%clk 0:02:51]} 6. c4 {[%clk 0:02:41]}  Nge7 {[%clk 0:02:39]} 7. Nbc3 {[%clk 0:02:40]}  Nb4 {[%clk 0:02:16]} 8. Nf4 {[%clk 0:02:36]}  g5 {[%clk 0:02:16]} 9. Nfxd5 {[%clk 0:02:35]}  Nexd5 {[%clk 0:02:05]} 10. cxd5 {[%clk 0:02:31]}  Bf5 {[%clk 0:02:04]} 11. a3 {[%clk 0:02:24]}  Nxd5 {[%clk 0:01:59]} 12. Nxd5 {[%clk 0:02:20]}  Qxd5 {[%clk 0:01:59]} 13. Bc4 {[%clk 0:02:21]}  Qd7 {[%clk 0:01:59]} 14. O-O {[%clk 0:02:15]}  h5 {[%clk 0:01:57]} 15. f3 {[%clk 0:02:14]}  Rh7 {[%clk 0:01:52]} 16. fxe4 {[%clk 0:01:47]}  Bxe4 {[%clk 0:01:52]} 17. Bd3 {[%clk 0:01:47]}  Qd5 {[%clk 0:01:43]} 18. Bxe4 {[%clk 0:01:40]}  Qxe4 {[%clk 0:01:43]} 19. Qf3 {[%clk 0:01:40]}  Qxf3 {[%clk 0:01:41]} 20. Rxf3 {[%clk 0:01:41]}  O-O-O {[%clk 0:01:27]} 21. Raf1 {[%clk 0:01:36]}  Rd7 {[%clk 0:01:27]} 22. e4 {[%clk 0:01:28]}  h4 {[%clk 0:01:21]} 23. h3 {[%clk 0:01:27]}  c6 {[%clk 0:01:14]} 24. Rf5 {[%clk 0:01:15]}  Bh6 {[%clk 0:00:51]} 25. R1f3 {[%clk 0:01:11]}  Re7 {[%clk 0:00:42]} 26. e5 {[%clk 0:01:08]}  Rg7 {[%clk 0:00:37]} 27. d5 {[%clk 0:00:42]}  cxd5 {[%clk 0:00:36]} 28. e6 {[%clk 0:00:42]}  fxe6 {[%clk 0:00:34]} 29. Rf8+ {[%clk 0:00:41]}  Kc7 {[%clk 0:00:33]} 30. Bxg7 {[%clk 0:00:41]}  Bxg7 {[%clk 0:00:33]} 31. R8f7 {[%clk 0:00:41]}  Kd6 {[%clk 0:00:32]} 32. Kf1 {[%clk 0:00:37]}  Be5 {[%clk 0:00:28]} 33. Rxe7 {[%clk 0:00:34]}  Kxe7 {[%clk 0:00:28]} 34. Ke2 {[%clk 0:00:34]}  Bf4 {[%clk 0:00:28]} 35. Rc3 {[%clk 0:00:23]}  Kd6 {[%clk 0:00:28]} 36. Rc8 {[%clk 0:00:22]}  e5 {[%clk 0:00:28]} 37. Kd3 {[%clk 0:00:18]}  e4+ {[%clk 0:00:28]} 38. Kd4 {[%clk 0:00:17]}  Be5+ {[%clk 0:00:28]} 39. Ke3 {[%clk 0:00:17]}  Bf4+ {[%clk 0:00:28]} 40. Kd4 {[%clk 0:00:17]}  Be5+ {[%clk 0:00:28]} 41. Ke3 {[%clk 0:00:18]}  Bb2 {[%clk 0:00:21]} 42. a4 {[%clk 0:00:17]}  Ba3 {[%clk 0:00:19]} 43. Rg8 {[%clk 0:00:14]}  Bc5+ {[%clk 0:00:18]} 44. Ke2 {[%clk 0:00:11]}  d4 {[%clk 0:00:17]} 45. Rxg5 {[%clk 0:00:11]}  d3+ {[%clk 0:00:17]} 46. Kd2 {[%clk 0:00:12]}  Bd4 {[%clk 0:00:13]} 47. Rh5 {[%clk 0:00:09]}  Kc6 {[%clk 0:00:05]} 48. Rg5 {[%clk 0:00:09]}  b5 {[%clk 0:00:04]} 49. axb5+ {[%clk 0:00:09]}  axb5 {[%clk 0:00:04]} 50. Rh5 {[%clk 0:00:10]}  b4 {[%clk 0:00:04]} 51. Rg5 {[%clk 0:00:09]}  Kd6 {[%clk 0:00:04]} 52. Rh5 {[%clk 0:00:09]}  Ke6 {[%clk 0:00:04]} 53. Rb5 {[%clk 0:00:09]}  Kd6 {[%clk 0:00:03]} 54. Rxb4 {[%clk 0:00:09]}  Kd5 {[%clk 0:00:03]} 55. Rb5+ {[%clk 0:00:09]}  Bc5 {[%clk 0:00:04]} 56. Rb8 {[%clk 0:00:08]}  Bd4 {[%clk 0:00:02]} 57. Rd8+ {[%clk 0:00:08]}  Ke5 {[%clk 0:00:03]} 58. Re8+ {[%clk 0:00:08]}  Kd5 {[%clk 0:00:03]} 59. b4 {[%clk 0:00:08]}  Bg1 {[%clk 0:00:02]} 60. b5 {[%clk 0:00:08]}  Bh2 {[%clk 0:00:02]} 61. b6 {[%clk 0:00:08]}  Bf4+ {[%clk 0:00:02]} 62. Kd1 {[%clk 0:00:07]}  e3 {[%clk 0:00:02]} 63. b7 {[%clk 0:00:08]}  e2+ {[%clk 0:00:03]} 64. Ke1 {[%clk 0:00:07]}  Kd4 {[%clk 0:00:03]} 65. b8=Q {[%clk 0:00:06]}  Bxb8 {[%clk 0:00:02]} 66. Rxb8 {[%clk 0:00:06]}  Ke3 {[%clk 0:00:02]} 67. Re8+ {[%clk 0:00:06]}  Kd4 {[%clk 0:00:02]} 68. Kd2 {[%clk 0:00:04]}  Kc4 {[%clk 0:00:03]} 69. Re4+ {[%clk 0:00:04]}  Kd5 {[%clk 0:00:03]} 70. Kxd3 {[%clk 0:00:04]} 1-0


[Site "https://www.chess.com"]

[Event "Titled Tuesday Blitz August 09 Early 2022"]
[White "Fernandez Hernandez, Gerardo"]
[Black "Ouellet, Maili-Jade"]
[WhiteFideId "2207400"]
[BlackFideId "2620472"]
[WhiteElo "2161"]
[BlackElo "1899"]
[Result "0-1"]
[Round "06"]
[TimeControl "180+1"]
[Date "2022.08.09"]
[WhiteClock "0:00:01"]
[BlackClock "0:00:17"]

1. e4 {[%clk 0:03:00]}  c5 {[%clk 0:02:59]} 2. d3 {[%clk 0:03:00]}  Nc6 {[%clk 0:02:59]} 3. g3 {[%clk 0:02:58]}  g6 {[%clk 0:02:59]} 4. Bg2 {[%clk 0:02:57]}  Bg7 {[%clk 0:02:59]} 5. f4 {[%clk 0:02:58]}  e6 {[%clk 0:02:59]} 6. Nf3 {[%clk 0:02:58]}  Nge7 {[%clk 0:02:58]} 7. O-O {[%clk 0:02:58]}  O-O {[%clk 0:02:59]} 8. c3 {[%clk 0:02:58]}  d5 {[%clk 0:02:59]} 9. Be3 {[%clk 0:02:57]}  b6 {[%clk 0:02:59]} 10. e5 {[%clk 0:02:57]}  Nf5 {[%clk 0:02:59]} 11. Bf2 {[%clk 0:02:53]}  h5 {[%clk 0:02:58]} 12. d4 {[%clk 0:02:51]}  Ba6 {[%clk 0:02:57]} 13. Re1 {[%clk 0:02:47]}  Qe7 {[%clk 0:02:55]} 14. Qa4 {[%clk 0:02:30]}  Bb7 {[%clk 0:02:47]} 15. h3 {[%clk 0:02:26]}  Rfc8 {[%clk 0:02:40]} 16. Nbd2 {[%clk 0:01:54]}  cxd4 {[%clk 0:02:39]} 17. cxd4 {[%clk 0:01:53]}  Qb4 {[%clk 0:02:39]} 18. Qb3 {[%clk 0:01:38]}  Bf8 {[%clk 0:02:28]} 19. a3 {[%clk 0:01:31]}  Qa5 {[%clk 0:02:16]} 20. g4 {[%clk 0:01:18]}  hxg4 {[%clk 0:02:11]} 21. hxg4 {[%clk 0:01:19]}  Nfxd4 {[%clk 0:02:00]} 22. Nxd4 {[%clk 0:01:11]}  Nxd4 {[%clk 0:01:59]} 23. Bxd4 {[%clk 0:01:09]}  Qxd2 {[%clk 0:01:58]} 24. Be3 {[%clk 0:01:01]}  Qc2 {[%clk 0:01:31]} 25. Qb5 {[%clk 0:00:50]}  Bc6 {[%clk 0:01:28]} 26. Qf1 {[%clk 0:00:33]}  Qxb2 {[%clk 0:01:22]} 27. f5 {[%clk 0:00:30]}  exf5 {[%clk 0:01:11]} 28. gxf5 {[%clk 0:00:24]}  Qxe5 {[%clk 0:01:10]} 29. Bxb6 {[%clk 0:00:17]}  Qxf5 {[%clk 0:01:08]} 30. Qxf5 {[%clk 0:00:17]}  gxf5 {[%clk 0:01:08]} 31. Bd4 {[%clk 0:00:17]}  Bg7 {[%clk 0:00:58]} 32. Rad1 {[%clk 0:00:17]}  Ba4 {[%clk 0:00:47]} 33. Rd2 {[%clk 0:00:13]}  Bh6 {[%clk 0:00:43]} 34. Rf2 {[%clk 0:00:09]}  f4 {[%clk 0:00:37]} 35. Bxd5 {[%clk 0:00:08]}  Rab8 {[%clk 0:00:34]} 36. Be5 {[%clk 0:00:05]}  Rb5 {[%clk 0:00:27]} 37. Ba2 {[%clk 0:00:02]}  Re8 {[%clk 0:00:19]} 38. Kf1 {[%clk 0:00:01]}  Rexe5 {[%clk 0:00:18]} 39. Rxe5 {[%clk 0:00:01]}  Rxe5 {[%clk 0:00:17]} 0-1


[Site "https://www.chess.com"]

[Event "Titled Tuesday Blitz August 09 Early 2022"]
[White "Garrido, Denis"]
[Black "Blanco Ronquillo, Humberto L."]
[WhiteFideId "601217"]
[BlackFideId "3504239"]
[WhiteElo "2346"]
[BlackElo "2425"]
[Result "0-1"]
[Round "06"]
[TimeControl "180+1"]
[Date "2022.08.09"]
[WhiteClock "0:01:25"]
[BlackClock "0:01:14"]

1. e4 {[%clk 0:03:00]}  c5 {[%clk 0:02:15]} 2. Nf3 {[%clk 0:02:59]}  Nc6 {[%clk 0:02:14]} 3. Bb5 {[%clk 0:02:58]}  Nf6 {[%clk 0:02:14]} 4. Nc3 {[%clk 0:02:57]}  e5 {[%clk 0:02:13]} 5. O-O {[%clk 0:02:56]}  d6 {[%clk 0:02:12]} 6. Nd5 {[%clk 0:02:46]}  Be7 {[%clk 0:02:05]} 7. Re1 {[%clk 0:02:38]}  Bg4 {[%clk 0:01:57]} 8. h3 {[%clk 0:02:35]}  Bh5 {[%clk 0:01:57]} 9. d3 {[%clk 0:02:28]}  O-O {[%clk 0:01:55]} 10. c3 {[%clk 0:02:20]}  Nxd5 {[%clk 0:01:49]} 11. exd5 {[%clk 0:02:19]}  Nb8 {[%clk 0:01:50]} 12. d4 {[%clk 0:02:12]}  cxd4 {[%clk 0:01:40]} 13. cxd4 {[%clk 0:02:04]}  exd4 {[%clk 0:01:38]} 14. g4 {[%clk 0:02:02]}  Bg6 {[%clk 0:01:38]} 15. Nxd4 {[%clk 0:02:01]}  Nd7 {[%clk 0:01:38]} 16. Be3 {[%clk 0:01:54]}  Bf6 {[%clk 0:01:35]} 17. f4 {[%clk 0:01:51]}  Be4 {[%clk 0:01:27]} 18. Bc4 {[%clk 0:01:47]}  Nb6 {[%clk 0:01:26]} 19. Bb3 {[%clk 0:01:44]}  Nxd5 {[%clk 0:01:24]} 20. Bxd5 {[%clk 0:01:42]}  Bxd5 {[%clk 0:01:25]} 21. Nf5 {[%clk 0:01:42]}  Bc6 {[%clk 0:01:19]} 22. Nxd6 {[%clk 0:01:30]}  Bxb2 {[%clk 0:01:16]} 23. Rb1 {[%clk 0:01:27]}  Bc3 {[%clk 0:01:15]} 24. Re2 {[%clk 0:01:25]}  Bf3 {[%clk 0:01:14]} 0-1


[Site "https://www.chess.com"]